[Event "13th All African Rapid-ch Women 2024"]
[Site "Accra"]
[Date "2024.03.10"]
[Round "4.4"]
[White "Mongeli, Sasha"]
[Black "Tsinjoviniavo, Aina Mahasambatra"]
[Result "1-0"]
[ECO "A06"]
[WhiteElo "1858"]
[BlackElo "1681"]
[Annotator "NA RC"]
[PlyCount "159"]
[EventDate "2024.03.07"]
[EventType "rapid"]
[EventCountry "GHA"]
[SourceTitle "playchess.com"]
[Source "ChessBase"]
[SourceQuality "1"]
[TimeControl "900+10"]

1. Nf3 {[%emt 0:00:43]} d5 {[%emt 0:00:01]} 2. b3 {[%emt 0:00:12]} c5 {[%emt 0:00:03]} 3. e3 {[%emt 0:00:03]} Nc6 {[%emt 0:00:02]} 4. Bb2 {[%emt 0:00:06]} Bg4 {[%emt 0:00:03]} 5. h3 {[%emt 0:00:06]} Bh5 {[%emt 0:00:02]} 6. c4 {[%emt 0:01:09] A06: Réti Opening: 1 Nf3 d5.} d4 {[%emt 0:00:20]} 7. exd4 {[%emt 0:00:50]} cxd4 {[%emt 0:00:02]} 8. d3 {[%emt 0:00:10]} Nf6 {[%emt 0:00:14]} 9. Be2 {[%emt 0:00:15]} e5 {[%emt 0:00:04]} 10. a3 {[%emt 0:00:11]} Bd6 {[%emt 0:00:10]} 11. b4 {[%emt 0:00:21]} b6 {[%emt 0:00:05]} 12. O-O {[%emt 0:00:28]} O-O {[%emt 0:00:02]} 13. Nbd2 {[%emt 0:00:52]} Re8 {[%emt 0:00:15]} 14. Ng5 {[%emt 0:01:43]} Bg6 {[%emt 0:00:47]} 15. Bf3 {[%emt 0:01:22]} Rc8 {[%emt 0:00:04]} 16. Nge4 {[%emt 0:00:23]} Nxe4 {[%emt 0:00:20]} 17. Nxe4 {[%emt 0:01:11]} Bc7 {[%emt 0:00:18]} 18. Qd2 {[%emt 0:03:11]} f5 {[%emt 0:00:37]} 19. Ng3 {[%emt 0:01:15]} Bd6 {[%emt 0:00:11]} 20. Bd5+ {[%emt 0:00:22]} Kh8 {[%emt 0:00:02]} 21. Rfe1 {[%emt 0:00:24]} Ne7 {[%emt 0:00:17]} 22. Bf3 {[%emt 0:00:43]} Ng8 {[%emt 0:00:31]} 23. Bc1 {[%emt 0:00:33]} f4 {[%emt 0:00:19]} 24. Ne4 {[%emt 0:00:21]} Bb8 {[%emt 0:00:26]} 25. Bb2 {[%emt 0:00:19]} Nf6 {[%emt 0:00:12]} 26. Rac1 {[%emt 0:00:19]} Nxe4 {[%emt 0:00:09]} 27. Bxe4 {[%emt 0:00:03]} Bxe4 {[%emt 0:00:11]} 28. Rxe4 {[%emt 0:00:17]} Qg5 {[%emt 0:00:30]} 29. Qe2 {[%emt 0:00:17]} Re6 {[%emt 0:00:37]} 30. Qg4 {[%emt 0:00:13]} Qxg4 {[%emt 0:00:19]} 31. hxg4 {[%emt 0:00:02]} Rg6 {[%emt 0:00:19]} 32. f3 {[%emt 0:00:20]} Rg5 {[%emt 0:00:15]} 33. a4 {[%emt 0:00:53]} a6 {[%emt 0:00:24]} 34. b5 {[%emt 0:00:17]} a5 {[%emt 0:00:24]} 35. Ba3 {[%emt 0:00:06]} Re8 {[%emt 0:00:36]} 36. c5 {[%emt 0:00:10]} bxc5 {[%emt 0:00:12]} 37. Bxc5 {[%emt 0:00:09]} Rg6 {[%emt 0:00:41]} 38. Ree1 {[%emt 0:00:09]} Bd6 {[%emt 0:01:13]} 39. Bxd4 {[%emt 0:00:25]} Rge6 {[%emt 0:00:28]} 40. Bc3 {[%emt 0:00:14]} Bc5+ {[%emt 0:00:14]} 41. Kf1 {[%emt 0:00:15]} Bb6 {[%emt 0:00:09]} 42. Re4 {[%emt 0:00:15]} Kg8 {[%emt 0:00:37]} 43. Be1 {[%emt 0:00:05]} Kf7 {[%emt 0:00:16]} 44. Bf2 {[%emt 0:00:04]} Bxf2 {[%emt 0:00:05]} 45. Kxf2 {[%emt 0:00:01]} Rd6 {[%emt 0:00:34]} 46. Ke2 {[%emt 0:00:04]} Kf6 {[%emt 0:00:12]} 47. Rc3 {[%emt 0:00:30]} Red8 {[%emt 0:00:50]} 48. Rec4 {[%emt 0:00:07]} Kg5 {[%emt 0:00:15]} 49. Rc5 {[%emt 0:00:06]} Re8 {[%emt 0:00:17]} 50. Rc6 {[%emt 0:00:09]} Rdd8 {[%emt 0:00:37]} 51. R3c5 {[%emt 0:00:18]} Rd4 {[%emt 0:00:42]} 52. Rc4 {[%emt 0:00:04]} Rdd8 {[%emt 0:00:02]} 53. R6c5 {[%emt 0:00:21]} Kh4 {[%emt 0:00:09]} 54. Rc7 {[%emt 0:00:05]} Rg8 {[%emt 0:00:08]} 55. Re7 {[%emt 0:00:06]} Rd5 {[%emt 0:00:19]} 56. Re4 {[%emt 0:00:28]} Rd4 {[%emt 0:00:12]} 57. Rxd4 {[%emt 0:00:08]} exd4 {[%emt 0:00:02]} 58. Re4 {[%emt 0:00:03]} Kg3 {[%emt 0:00:10]} 59. Rxd4 {[%emt 0:00:03]} g5 {[%emt 0:00:09]} 60. b6 {[%emt 0:00:27]} Rg6 {[%emt 0:00:07]} 61. b7 {[%emt 0:00:06]} Rb6 {[%emt 0:00:02]} 62. Rd7 {[%emt 0:00:04]} h6 {[%emt 0:00:05]} 63. d4 {[%emt 0:00:06]} Kxg2 {[%emt 0:00:07]} 64. d5 {[%emt 0:00:03]} Rb2+ {[%emt 0:00:13]} 65. Kd3 {[%emt 0:00:02]} Kxf3 {[%emt 0:00:05]} 66. Rc7 {[%emt 0:00:10]} Kxg4 {[%emt 0:00:14]} 67. d6 {[%emt 0:00:02]} f3 {[%emt 0:00:06]} 68. Kc3 {[%emt 0:00:09]} Rb4 {[%emt 0:01:44]} 69. Rc4+ {[%emt 0:00:07]} Rxc4+ {[%emt 0:00:05]} 70. Kxc4 {[%emt 0:00:04]} f2 {[%emt 0:00:02]} 71. b8=Q {[%emt 0:00:02]} f1=Q+ {[%emt 0:00:02]} 72. Kd5 {[%emt 0:00:07]} Qd3+ {[%emt 0:00:03]} 73. Kc6 {[%emt 0:00:03]} Qc4+ {[%emt 0:00:10]} 74. Kb7 {[%emt 0:00:12]} Qxa4 {[%emt 0:02:07]} 75. Qc8+ {[%emt 0:00:07]} Kh4 {[%emt 0:00:01]} 76. d7 {[%emt 0:00:16]} Qb4+ {[%emt 0:00:01]} 77. Ka8 {[%emt 0:00:25]} Qe4+ {[%emt 0:00:03]} 78. Kb8 {[%emt 0:00:15]} Qe5+ {[%emt 0:00:13]} 79. Qc7 {[%emt 0:01:14]} Qb2+ {[%emt 0:00:05]} 80. Kc8 {[%emt 0:00:00]} 1-0

[Event "13th All African Rapid-ch Women 2024"]
[Site "Accra"]
[Date "2024.03.10"]
[Round "4.6"]
[White "Shaba, Linda Dalitso"]
[Black "Vilhete, Vania Fausto Da T."]
[Result "1-0"]
[ECO "E18"]
[WhiteElo "1836"]
[BlackElo "1829"]
[Annotator "NA RC"]
[PlyCount "79"]
[EventDate "2024.03.07"]
[EventType "rapid"]
[EventCountry "GHA"]
[SourceTitle "playchess.com"]
[Source "ChessBase"]
[SourceQuality "1"]
[TimeControl "900+10"]

1. d4 {[%emt 0:00:10]} d5 {[%emt 0:01:43]} 2. Nf3 {[%emt 0:00:00]} e6 {[%emt 0:00:04]} 3. g3 {[%emt 0:00:04]} Nf6 {[%emt 0:00:05]} 4. Bg2 {[%emt 0:00:03]} Be7 {[%emt 0:00:05]} 5. O-O {[%emt 0:00:04]} O-O {[%emt 0:00:13]} 6. c4 {[%emt 0:00:03]} b6 {[%emt 0:00:11]} 7. Nc3 {[%emt 0:00:16]} Bb7 {[%emt 0:00:02]} 8. cxd5 {[%emt 0:00:34]} exd5 {[%emt 0:00:04] 8...Nxd5 deserves study.} 9. Bf4 {[%emt 0:00:10]} c6 {[%emt 0:00:23]} 10. Qc2 {[%emt 0:00:28] E18: Queen's Indian: Old Main Line (4 g3 Bb7 5 Bg2 Be7 6 0-0 0-0 7 Nc3).} Nbd7 {[%emt 0:00:06]} 11. Rac1 {[%emt 0:00:13]} Nh5 {[%emt 0:01:37]} 12. Bd2 {[%emt 0:00:04]} Rc8 {[%emt 0:00:36]} 13. Qb3 {[%emt 0:00:50]} Nhf6 {[%emt 0:01:26]} 14. Bg5 $146 {[%emt 0:01:36]} ({Predecessor:} 14. a3 Re8 15. Rfe1 Bd6 16. e4 dxe4 17. Ng5 Rf8 18. Ncxe4 Nxe4 19. Rxe4 h6 20. Ne6 fxe6 21. Rxe6 Kh8 22. Rxd6 {½-½ Titov,T-Andreev,A (1889) BUL-ch U20 Sofia 2009 (4)}) 14... Re8 {[%emt 0:00:51]} 15. Rfe1 {[%emt 0:00:18]} h6 {[%emt 0:01:04]} 16. Bf4 {[%emt 0:00:33]} Nf8 {[%emt 0:00:20]} 17. Bh3 {[%emt 0:00:26]} Ra8 {[%emt 0:00:59]} 18. Ne5 {[%emt 0:00:40]} Bd6 {[%emt 0:00:35]} 19. Nd3 {[%emt 0:00:57]} Ng6 {[%emt 0:00:47]} 20. Bxd6 {[%emt 0:00:46]} Qxd6 {[%emt 0:00:02]} 21. e3 {[%emt 0:00:13]} Rab8 {[%emt 0:01:27]} 22. Qa4 {[%emt 0:02:06]} a6 {[%emt 0:00:50]} 23. b4 {[%emt 0:01:05]} Ne4 {[%emt 0:01:07]} 24. Qc2 {[%emt 0:01:29]} Qf6 {[%emt 0:00:57]} 25. Nxe4 {[%emt 0:00:23]} dxe4 {[%emt 0:00:18]} 26. Nb2 {[%emt 0:00:30]} Qe7 {[%emt 0:01:41]} 27. a3 {[%emt 0:00:04]} a5 {[%emt 0:00:19]} 28. Qd2 {[%emt 0:00:07]} axb4 {[%emt 0:00:05]} 29. axb4 {[%emt 0:00:02]} Red8 {[%emt 0:00:11]} 30. Qc3 {[%emt 0:00:13]} c5 {[%emt 0:00:12]} 31. bxc5 {[%emt 0:00:35]} bxc5 $16 {[%emt 0:00:02]} 32. dxc5 {[%emt 0:00:26]} Bc6 {[%emt 0:00:01]} 33. Red1 {[%emt 0:01:26]} Ne5 {[%emt 0:00:07]} 34. Bg2 {[%emt 0:00:17]} Nf3+ {[%emt 0:00:33]} 35. Kh1 {[%emt 0:00:31]} Rxd1+ {[%emt 0:00:24]} 36. Rxd1 {[%emt 0:00:17]} Qb7 {[%emt 0:00:26]} 37. Nc4 {[%emt 0:00:30]} Qb3 {[%emt 0:00:30]} 38. Qxb3 {[%emt 0:00:34]} Rxb3 {[%emt 0:00:01]} 39. Na5 {[%emt 0:00:02]} Rd3 {[%emt 0:00:35]} 40. Bxf3 {[%emt 0:00:03]} 1-0

[Event "13th All African Rapid-ch Women 2024"]
[Site "Accra"]
[Date "2024.03.10"]
[Round "4.7"]
[White "Laubscher, Anzel"]
[Black "Marochkina, Nadezhda Valerevna"]
[Result "0-1"]
[ECO "B10"]
[WhiteElo "1820"]
[BlackElo "1819"]
[Annotator "NA RC"]
[PlyCount "74"]
[EventDate "2024.03.07"]
[EventType "rapid"]
[EventCountry "GHA"]
[SourceTitle "playchess.com"]
[Source "ChessBase"]
[SourceQuality "1"]
[TimeControl "900+10"]

1. e4 {[%emt 0:00:02]} c6 {[%emt 0:00:02]} 2. d3 {[%emt 0:00:02]} d5 {[%emt 0:00:01]} 3. Nd2 {[%emt 0:00:01]} d4 {[%emt 0:00:07]} 4. f4 {[%emt 0:00:15]} Nf6 {[%emt 0:00:09]} 5. Ngf3 {[%emt 0:00:15]} c5 {[%emt 0:00:19]} 6. a4 {[%emt 0:01:20] B10: Caro-Kann: 2 d3 and 2 c4.} Nc6 {[%emt 0:01:01]} 7. Nc4 {[%emt 0:01:12]} b6 {[%emt 0:02:01]} 8. g3 {[%emt 0:01:55]} Bb7 {[%emt 0:01:11]} 9. Bg2 {[%emt 0:00:11]} e6 {[%emt 0:00:06]} 10. O-O {[%emt 0:00:11]} Be7 {[%emt 0:00:05]} 11. h3 {[%emt 0:00:31]} O-O {[%emt 0:00:05]} 12. g4 {[%emt 0:01:27]} Qc7 {[%emt 0:01:32]} 13. Qe1 {[%emt 0:03:21]} a6 {[%emt 0:00:44]} 14. g5 {[%emt 0:02:41]} Nd7 {[%emt 0:02:05]} 15. Bd2 {[%emt 0:00:44]} b5 {[%emt 0:00:09]} 16. axb5 {[%emt 0:00:09]} axb5 {[%emt 0:00:03]} 17. Rxa8 {[%emt 0:00:15]} Rxa8 {[%emt 0:00:02]} 18. Na3 {[%emt 0:00:21]} Qb6 {[%emt 0:00:48]} 19. Qf2 {[%emt 0:01:09]} Ra4 {[%emt 0:03:30]} 20. h4 {[%emt 0:00:25]} c4 {[%emt 0:00:46]} 21. dxc4 {[%emt 0:00:42]} bxc4 $19 {[%emt 0:00:02]} 22. h5 {[%emt 0:00:29]} Bc5 {[%emt 0:00:50]} 23. Kh1 {[%emt 0:00:34]} d3 {[%emt 0:00:40]} 24. Qg3 {[%emt 0:00:06]} Qxb2 {[%emt 0:01:45]} 25. Rb1 {[%emt 0:00:20]} Qxa3 {[%emt 0:00:03]} 26. Rxb7 {[%emt 0:00:06]} dxc2 {[%emt 0:00:06]} 27. Rxd7 {[%emt 0:00:30]} c1=Q+ {[%emt 0:00:05]} 28. Bxc1 {[%emt 0:00:02]} Qxc1+ {[%emt 0:00:02]} 29. Kh2 {[%emt 0:00:05]} Ra7 {[%emt 0:00:25]} 30. Rxa7 {[%emt 0:00:06]} Nxa7 {[%emt 0:00:09]} 31. g6 {[%emt 0:00:04]} hxg6 {[%emt 0:00:10]} 32. hxg6 {[%emt 0:00:02]} fxg6 {[%emt 0:00:42]} 33. Qxg6 {[%emt 0:00:15]} Qxf4+ {[%emt 0:00:03]} 34. Qg3 {[%emt 0:00:13]} Qxg3+ {[%emt 0:00:00]} 35. Kxg3 {[%emt 0:00:02]} c3 {[%emt 0:00:00]} 36. Ne1 {[%emt 0:00:15]} Nb5 {[%emt 0:00:00]} 37. Nc2 {[%emt 0:00:34]} Na3 {[%emt 0:00:00]} 0-1

[Event "13th All African Rapid-ch Women 2024"]
[Site "Accra"]
[Date "2024.03.10"]
[Round "4.8"]
[White "Gertrude Banini"]
[Black "Banda Natalie Katlo"]
[Result "0-1"]
[ECO "D13"]
[WhiteElo "1681"]
[BlackElo "1772"]
[Annotator "NA RC"]
[PlyCount "124"]
[EventDate "2024.03.07"]
[EventType "rapid"]
[EventCountry "GHA"]
[SourceTitle "playchess.com"]
[Source "ChessBase"]
[SourceQuality "1"]
[TimeControl "900+10"]

1. d4 {[%emt 0:03:53]} d5 {[%emt 0:00:00]} 2. c4 {[%emt 0:00:04]} c6 {[%emt 0:00:01]} 3. cxd5 {[%emt 0:00:02]} cxd5 {[%emt 0:00:02]} 4. Nf3 {[%emt 0:00:03]} Nf6 {[%emt 0:00:02]} 5. Nc3 {[%emt 0:00:03]} e6 {[%emt 0:00:04]} 6. Bg5 {[%emt 0:00:02]} Nc6 {[%emt 0:00:14]} 7. e3 {[%emt 0:00:05]} h6 {[%emt 0:00:14]} 8. Bh4 {[%emt 0:00:02]} Be7 {[%emt 0:00:24]} 9. Bd3 {[%emt 0:00:08]} O-O {[%emt 0:00:33]} 10. O-O {[%emt 0:00:04]} b6 {[%emt 0:00:06]} 11. a3 {[%emt 0:00:28]} Bb7 {[%emt 0:00:03]} 12. b4 {[%emt 0:00:18]} Rc8 {[%emt 0:00:07]} 13. Qb3 {[%emt 0:00:37]} Qd7 {[%emt 0:00:56]} 14. Rfc1 {[%emt 0:00:26]} Nb8 {[%emt 0:00:54]} 15. Bg3 {[%emt 0:00:27]} Nc6 {[%emt 0:01:49]} 16. Rc2 {[%emt 0:01:08]} Nh5 {[%emt 0:01:38]} 17. Rac1 {[%emt 0:00:44]} Nxg3 {[%emt 0:00:10]} 18. hxg3 {[%emt 0:00:04]} Bf6 {[%emt 0:00:52]} 19. Bb5 {[%emt 0:00:58]} Rc7 {[%emt 0:00:37]} 20. Bxc6 {[%emt 0:00:27]} Bxc6 {[%emt 0:00:12]} 21. b5 {[%emt 0:00:18]} Ba8 {[%emt 0:00:27]} 22. Ne2 {[%emt 0:01:16]} Rfc8 {[%emt 0:00:16]} 23. Rxc7 {[%emt 0:00:05]} Rxc7 {[%emt 0:00:02]} 24. Rxc7 {[%emt 0:00:12]} Qxc7 {[%emt 0:00:01]} 25. Qc3 {[%emt 0:00:45]} Qd7 {[%emt 0:00:17]} 26. a4 {[%emt 0:00:10]} Bb7 {[%emt 0:00:17]} 27. Ne1 {[%emt 0:00:42]} a6 {[%emt 0:00:59]} 28. Qb4 {[%emt 0:00:26]} axb5 {[%emt 0:01:05]} 29. Qxb5 {[%emt 0:00:31]} Qxb5 {[%emt 0:00:11]} 30. axb5 {[%emt 0:00:02]} Bc8 {[%emt 0:00:00]} 31. Nc3 {[%emt 0:00:16]} Bd7 {[%emt 0:00:03]} 32. Nc2 {[%emt 0:01:11]} Be7 {[%emt 0:00:24]} 33. Kf1 {[%emt 0:00:23]} f5 {[%emt 0:00:59]} 34. Ke2 {[%emt 0:00:25]} Kf7 {[%emt 0:00:06]} 35. f4 {[%emt 0:00:15]} Kf6 {[%emt 0:00:56]} 36. Kf3 {[%emt 0:00:20]} Be8 {[%emt 0:00:08]} 37. Kf2 {[%emt 0:00:38]} g5 {[%emt 0:00:25]} 38. Kf3 {[%emt 0:00:29]} gxf4 {[%emt 0:00:31]} 39. gxf4 {[%emt 0:00:14]} Kg6 {[%emt 0:00:10]} 40. g3 {[%emt 0:00:17]} h5 {[%emt 0:00:24]} 41. Kg2 {[%emt 0:00:25]} h4 {[%emt 0:00:53]} 42. gxh4 {[%emt 0:00:14]} Kh5 {[%emt 0:00:14]} 43. Kf3 {[%emt 0:00:24]} Kxh4 {[%emt 0:00:06]} 44. Na4 {[%emt 0:00:31]} Bh5+ {[%emt 0:00:27]} 45. Kf2 {[%emt 0:00:25]} Bd1 {[%emt 0:00:02]} 46. Nxb6 {[%emt 0:00:24]} Bxc2 {[%emt 0:00:12]} 47. Nc8 {[%emt 0:00:16]} Bd8 {[%emt 0:00:22]} 48. b6 {[%emt 0:00:05]} Ba4 {[%emt 0:00:27]} 49. b7 {[%emt 0:00:21]} Bc7 {[%emt 0:00:01]} 50. Ne7 {[%emt 0:00:26]} Bb5 {[%emt 0:00:15]} 51. Kf3 {[%emt 0:00:40]} Ba6 {[%emt 0:00:15]} 52. Ng6+ {[%emt 0:00:08]} Kh5 {[%emt 0:01:11]} 53. Nf8 {[%emt 0:00:04]} Bxb7 {[%emt 0:00:18]} 54. Nxe6 {[%emt 0:00:02]} Bd6 {[%emt 0:00:16]} 55. Nc5 {[%emt 0:00:28]} Bxc5 {[%emt 0:00:13]} 56. dxc5 {[%emt 0:00:02]} Kh4 {[%emt 0:00:22]} 57. Ke2 {[%emt 0:00:08]} Kg3 {[%emt 0:00:06]} 58. Kd3 {[%emt 0:00:02]} Kf3 {[%emt 0:00:22]} 59. Kd4 {[%emt 0:00:08]} Bc6 {[%emt 0:00:11]} 60. Ke5 {[%emt 0:00:05]} Kxe3 {[%emt 0:00:23]} 61. Kxf5 {[%emt 0:00:02]} d4 {[%emt 0:00:01]} 62. Ke5 {[%emt 0:00:11]} d3 {[%emt 0:00:07]} 0-1

[Event "13th All African Rapid-ch Women 2024"]
[Site "Accra"]
[Date "2024.03.10"]
[Round "4.9"]
[White "Benson, Maud"]
[Black "Ayiku, Angela Naa Amerley"]
[Result "1-0"]
[ECO "A43"]
[WhiteElo "1664"]
[BlackElo "1629"]
[Annotator "NA RC"]
[PlyCount "67"]
[EventDate "2024.03.07"]
[EventType "rapid"]
[EventCountry "GHA"]
[SourceTitle "playchess.com"]
[Source "ChessBase"]
[SourceQuality "1"]
[TimeControl "900+10"]

1. d4 {[%emt 0:00:04]} c5 {[%emt 0:00:06]} 2. d5 {[%emt 0:00:02]} Nf6 {[%emt 0:00:06]} 3. Nc3 {[%emt 0:00:05]} d6 {[%emt 0:00:04]} 4. Nf3 {[%emt 0:00:15]} g6 {[%emt 0:00:03]} 5. e4 {[%emt 0:00:10]} Nbd7 {[%emt 0:00:14]} 6. Nd2 {[%emt 0:00:04]} Bg7 {[%emt 0:00:04]} 7. Nc4 {[%emt 0:00:04]} O-O {[%emt 0:00:15]} 8. Be2 {[%emt 0:00:13]} a6 {[%emt 0:00:37]} 9. a4 {[%emt 0:00:07]} Ne8 {[%emt 0:00:28]} 10. O-O {[%emt 0:00:46]} Ne5 {[%emt 0:00:02]} 11. f4 {[%emt 0:00:09]} Nxc4 {[%emt 0:00:05]} 12. Bxc4 {[%emt 0:00:02]} Nf6 {[%emt 0:00:34]} 13. Be3 {[%emt 0:15:19]} Bd7 {[%emt 0:00:37]} 14. e5 {[%emt 0:00:00]} dxe5 {[%emt 0:00:35]} 15. fxe5 {[%emt 0:00:00]} Ng4 {[%emt 0:00:21]} 16. Bxc5 {[%emt 0:00:00]} Nxe5 {[%emt 0:00:51]} 17. Bb3 {[%emt 0:00:00]} Ng4 {[%emt 0:01:43]} 18. Qf3 {[%emt 0:00:00]} Nh6 {[%emt 0:00:35]} 19. Kh1 {[%emt 0:00:00]} b6 {[%emt 0:01:10]} 20. Ba3 {[%emt 0:00:00]} b5 {[%emt 0:00:24]} 21. axb5 {[%emt 0:00:00]} axb5 {[%emt 0:00:03]} 22. Ne4 {[%emt 0:00:00]} Bf5 {[%emt 0:00:35]} 23. Nc5 {[%emt 0:00:00]} Qc7 {[%emt 0:00:40]} 24. Nd3 {[%emt 0:00:00]} Ng4 {[%emt 0:00:32]} 25. d6 {[%emt 0:00:00]} exd6 {[%emt 0:00:48]} 26. h3 {[%emt 0:00:00]} Bxd3 {[%emt 0:05:08]} 27. Qxd3 {[%emt 0:00:00]} b4 {[%emt 0:00:31]} 28. hxg4 {[%emt 0:00:00]} bxa3 {[%emt 0:00:02]} 29. Rxa3 {[%emt 0:00:00]} Rxa3 {[%emt 0:00:48]} 30. bxa3 {[%emt 0:00:00]} Qc5 {[%emt 0:00:01]} 31. Rf3 {[%emt 0:00:47]} Qxa3 {[%emt 0:00:10]} 32. Bxf7+ {[%emt 0:01:18]} Rxf7 {[%emt 0:00:28]} 33. Qxa3 {[%emt 0:00:04]} Be5 {[%emt 0:01:48]} 34. Qb3 {[%emt 0:00:07]} 1-0

[Event "13th All African Rapid-ch Women 2024"]
[Site "Accra"]
[Date "2024.03.10"]
[Round "5.1"]
[White "Nakabo, Peninah"]
[Black "Wafa, Shahenda"]
[Result "0-1"]
[ECO "B22"]
[WhiteElo "1836"]
[BlackElo "2083"]
[Annotator "ChessBase"]
[PlyCount "96"]
[EventDate "2024.03.07"]
[EventType "rapid"]
[EventCountry "GHA"]
[SourceTitle "playchess.com"]
[Source "ChessBase"]
[SourceQuality "1"]
[TimeControl "900+10"]

1. e4 {[%emt 0:00:02]} c5 {[%emt 0:00:02]} 2. c3 {[%emt 0:00:04]} d5 {[%emt 0:00:03]} 3. exd5 {[%emt 0:00:03]} Qxd5 {[%emt 0:00:03]} 4. d4 {[%emt 0:00:09]} Nc6 {[%emt 0:00:15]} 5. Nf3 {[%emt 0:00:45]} Nf6 {[%emt 0:00:09]} 6. Be2 {[%emt 0:00:36]} Bg4 {[%emt 0:01:20]} 7. c4 {[%emt 0:01:12]} Qf5 {[%emt 0:00:20]} 8. d5 {[%emt 0:00:17]} Nb4 {[%emt 0:00:18]} 9. Qa4+ {[%emt 0:00:44]} Nd7 {[%emt 0:01:14]} 10. Na3 {[%emt 0:01:50]} Bxf3 {[%emt 0:02:58]} 11. Bxf3 {[%emt 0:00:40]} Nd3+ {[%emt 0:00:09]} 12. Kf1 {[%emt 0:00:12]} Qe5 {[%emt 0:01:49]} 13. Nc2 {[%emt 0:03:20]} Nxc1 {[%emt 0:02:08]} 14. Rxc1 {[%emt 0:00:12]} Qxb2 {[%emt 0:00:05]} 15. Re1 {[%emt 0:00:13]} h5 {[%emt 0:02:27]} 16. h4 {[%emt 0:00:15]} Rh6 {[%emt 0:00:14]} 17. Ne3 {[%emt 0:00:49]} Ra6 {[%emt 0:00:25]} 18. Qb3 {[%emt 0:00:02]} Rxa2 {[%emt 0:00:16]} 19. Qxb2 {[%emt 0:00:03]} Rxb2 {[%emt 0:00:02]} 20. Bxh5 {[%emt 0:00:03]} g6 {[%emt 0:00:29]} 21. Be2 {[%emt 0:00:04]} Bg7 {[%emt 0:00:38]} 22. g4 {[%emt 0:00:20]} Ne5 {[%emt 0:00:53]} 23. f4 {[%emt 0:00:26]} Nd7 {[%emt 0:00:13]} 24. f5 {[%emt 0:00:20]} Bd4 {[%emt 0:00:20]} 25. Nd1 {[%emt 0:00:43]} Rd2 {[%emt 0:00:06]} 26. fxg6 {[%emt 0:00:06]} fxg6 {[%emt 0:00:01]} 27. h5 {[%emt 0:00:08]} gxh5 {[%emt 0:00:07]} 28. Rxh5 {[%emt 0:00:45]} O-O-O {[%emt 0:00:12]} 29. Rf5 {[%emt 0:00:56]} Rh8 {[%emt 0:00:39]} 30. Kg2 {[%emt 0:00:07]} Nf6 {[%emt 0:00:11]} 31. g5 {[%emt 0:01:08]} Ng4 {[%emt 0:00:42]} 32. Kf3 {[%emt 0:00:40]} Ne5+ {[%emt 0:00:06]} 33. Ke4 {[%emt 0:00:44]} Rh2 {[%emt 0:00:48]} 34. Bf1 {[%emt 0:00:33]} Ng6 {[%emt 0:00:16]} 35. Ne3 {[%emt 0:00:48]} Bxe3 {[%emt 0:00:12]} 36. Kxe3 {[%emt 0:00:43]} Rb2 {[%emt 0:00:10]} 37. Re2 {[%emt 0:00:42]} Rb3+ {[%emt 0:00:24]} 38. Kd2 {[%emt 0:00:16]} Rh4 {[%emt 0:00:06]} 39. Ref2 {[%emt 0:00:11]} a5 {[%emt 0:00:12]} 40. Kc2 {[%emt 0:00:04]} a4 {[%emt 0:00:06]} 41. Rd2 {[%emt 0:00:11]} Kc7 {[%emt 0:00:15]} 42. Rd1 {[%emt 0:00:04]} Rh2+ {[%emt 0:00:03]} 43. Rd2 {[%emt 0:00:27]} Rxd2+ {[%emt 0:00:06]} 44. Kxd2 {[%emt 0:00:02]} a3 {[%emt 0:00:05]} 45. Bd3 {[%emt 0:00:10]} a2 {[%emt 0:00:17]} 46. Rf1 {[%emt 0:00:04]} Ne5 {[%emt 0:00:07]} 47. Bc2 {[%emt 0:00:32]} Nxc4+ {[%emt 0:00:08]} 48. Kc1 {[%emt 0:00:06]} a1=Q+ {[%emt 0:00:02]} 0-1

[Event "13th All African Rapid-ch Women 2024"]
[Site "Accra"]
[Date "2024.03.10"]
[Round "5.2"]
[White "Nassr, Lina"]
[Black "Mongeli, Sasha"]
[Result "1-0"]
[ECO "D04"]
[WhiteElo "2080"]
[BlackElo "1858"]
[Annotator "ChessBase"]
[PlyCount "85"]
[EventDate "2024.03.07"]
[EventType "rapid"]
[EventCountry "GHA"]
[SourceTitle "playchess.com"]
[Source "ChessBase"]
[SourceQuality "1"]
[TimeControl "900+10"]

1. d4 {[%emt 0:00:02]} d5 {[%emt 0:03:18]} 2. Nf3 {[%emt 0:00:02]} Nf6 {[%emt 0:00:02]} 3. e3 {[%emt 0:00:01]} c6 {[%emt 0:00:05]} 4. Bd3 {[%emt 0:00:21]} Bg4 {[%emt 0:00:03]} 5. Nbd2 {[%emt 0:00:26]} Nbd7 {[%emt 0:00:02]} 6. h3 {[%emt 0:00:22]} Bh5 {[%emt 0:00:04]} 7. Be2 {[%emt 0:00:37]} Qc7 {[%emt 0:00:15]} 8. O-O {[%emt 0:00:29]} e5 {[%emt 0:00:35]} 9. dxe5 {[%emt 0:00:17]} Nxe5 {[%emt 0:00:04]} 10. Nxe5 {[%emt 0:00:24]} Qxe5 {[%emt 0:01:25]} 11. Bxh5 {[%emt 0:00:35]} Qxh5 {[%emt 0:00:06]} 12. Qxh5 {[%emt 0:01:25]} Nxh5 {[%emt 0:00:02]} 13. e4 {[%emt 0:00:27]} O-O-O {[%emt 0:00:57]} 14. e5 {[%emt 0:01:07]} Nf4 {[%emt 0:00:54]} 15. Re1 {[%emt 0:01:26]} Ne6 {[%emt 0:02:32]} 16. Nb3 {[%emt 0:00:29]} Bc5 {[%emt 0:00:26]} 17. g3 {[%emt 0:02:17]} Rde8 {[%emt 0:00:39]} 18. Kg2 {[%emt 0:00:29]} Re7 {[%emt 0:00:42]} 19. f4 {[%emt 0:00:32]} g6 {[%emt 0:00:34]} 20. g4 {[%emt 0:01:00]} Bb6 {[%emt 0:00:44]} 21. Bd2 {[%emt 0:00:42]} h5 {[%emt 0:00:43]} 22. Kg3 {[%emt 0:00:45]} hxg4 {[%emt 0:00:34]} 23. hxg4 {[%emt 0:00:07]} Ree8 {[%emt 0:00:06]} 24. Rh1 {[%emt 0:00:12]} Kd7 {[%emt 0:00:26]} 25. Rad1 {[%emt 0:00:48]} Kc8 {[%emt 0:00:36]} 26. Rde1 {[%emt 0:01:05]} Kd7 {[%emt 0:00:17]} 27. Ref1 {[%emt 0:00:55]} Reg8 {[%emt 0:00:47]} 28. Rd1 {[%emt 0:00:33]} Kc8 {[%emt 0:00:07]} 29. c3 {[%emt 0:00:15]} Re8 {[%emt 0:00:14]} 30. Rde1 {[%emt 0:00:17]} Kd7 {[%emt 0:00:09]} 31. Kf3 {[%emt 0:00:18]} Reg8 {[%emt 0:00:42]} 32. Be3 {[%emt 0:00:41]} Ke7 {[%emt 0:00:34]} 33. Nd4 {[%emt 0:00:34]} Bxd4 {[%emt 0:00:13]} 34. cxd4 {[%emt 0:00:13]} Kf8 {[%emt 0:00:36]} 35. Bf2 {[%emt 0:00:24]} Ke8 {[%emt 0:00:32]} 36. Ke3 {[%emt 0:00:08]} Kd7 {[%emt 0:00:21]} 37. Bh4 {[%emt 0:00:08]} Rh7 {[%emt 0:00:33]} 38. Bf6 {[%emt 0:00:04]} Rxh1 {[%emt 0:00:03]} 39. Rxh1 {[%emt 0:00:01]} Nf8 {[%emt 0:00:17]} 40. Rh2 {[%emt 0:00:27]} Ke6 {[%emt 0:00:06]} 41. Rf2 {[%emt 0:00:10]} Nd7 {[%emt 0:00:12]} 42. f5+ {[%emt 0:00:06]} gxf5 {[%emt 0:00:19]} 43. gxf5# {[%emt 0:00:01]} 1-0